Cogmind - Beta 13 @@@ ROGUE MODE // 2024.05.27 @ 08:42:11 Player: Bace Troncons Result: Destroyed by S-10 Pest with Light Assault Rifle Performance ------------- Evolutions (0) 0 Regions Visited (2) 400 Robots Destroyed (30) 150 Value Destroyed (709) 709 Prototype IDs (13) 260 Alien Tech Used (0) 0 Bonus (0) 0 TOTAL SCORE: 1519 Bonus ------- None Cogmind --------- Core Integrity 0/250 Matter 265/300 Energy 250/250 System Corruption 0% Temperature Cool (0) Movement Treading (160) Location -10/Subcaves Parts ------- > --- POWER (1) -------- Ion Engine > --- PROPULSION (2) --- Light Treads Light Treads > --- UTILITY (2) ------ Large Storage Unit Improved Targeting Computer > --- WEAPON (2) ------- Subdweller Machine Gun Battle Cannon > --- INVENTORY (15) --- Light Treads Structural Scanner Sensor Array Terrain Scanner Weapon Shielding Powered Cannon Light Cannon Grenade Launcher Peak State ------------ > --- POWER ------------ Ion Engine > --- PROPULSION ------- Light Treads Spiked Treads > --- UTILITY ---------- Large Storage Unit Improved Targeting Computer > --- WEAPON ----------- Subdweller Machine Gun Battle Cannon > --- INVENTORY -------- Ion Engine Light Treads Light Treads Structural Scanner Sensor Array Terrain Scanner ECM Suite Weapon Shielding Powered Cannon Light Assault Rifle Light Cannon Grenade Launcher [Rating: 13] Favorites ----------- Power Ion Engine Engine Ion Engine Propulsion Light Treads Treads Light Treads Utility Large Storage Unit Storage Large Storage Unit Processor Improved Targeting Computer Weapon Light Cannon Energy Gun Medium Laser Energy Cannon Beam Cannon Ballistic Gun Subdweller Machine Gun Ballistic Cannon Light Cannon Build | -11 -10 -10 ------- Run | Yrd Mat Sub Slots Evolved . | . . . Power . | . . . Propulsion . | . . . Utility . | . . . Weapon . | . . . Parts Attached 40 | 6 25 9 Power 6 | 1 4 1 Engine 6 | 1 4 1 Core . | . . . Reactor . | . . . Propulsion 15 | 2 10 3 Treads 15 | 2 10 3 Leg . | . . . Wheel . | . . . Hover . | . . . Flight . | . . . Utility 5 | 1 4 . Device . | . . . Storage 3 | 1 2 . Processor 2 | . 2 . Hackware . | . . . Protection . | . . . Artifact . | . . . Weapon 14 | 2 7 5 Energy Gun 4 | 2 2 . Energy Cannon 1 | . 1 . Ballistic Gun 5 | . 3 2 Ballistic Cannon 4 | . 1 3 Launcher . | . . . Special Weapon . | . . . Impact Weapon . | . . . Slashing Weapon . | . . . Piercing Weapon . | . . . Special Melee Weapon . | . . . Unidentified Prototypes . | . . . Parts Lost 3 | . . 3 Power 1 | . . 1 Propulsion 1 | . . 1 Utility . | . . . Weapon 1 | . . 1 Highest Loss Streak 2 | . . 2 To Critical Strikes . | . . . Average Slot Usage (%) 98 | . 96 99 Engine 13 | . 13 13 Treads 27 | . 27 27 Storage 14 | . 14 14 Processor 13 | . 11 14 Energy Gun 1 | . 3 . Ballistic Gun 13 | . 15 12 Ballistic Cannon 12 | . 7 15 Naked Turns . | . . . Heaviest Build 33 | 12 33 32 Greatest Support 40 | 40 40 40 Greatest Overweight (x) 1 | . 1 1 Average Overweight (x) . | . . . Largest Inventory Capacity 15 | 8 15 15 Average Capacity 14 | 6 14 15 Most Carried 15 | 4 15 15 Average Carried 12 | 2 11 12 Final Capacity 15 | 8 15 15 Final Carried 14 | 3 14 9 Class Distribution -------------------- 100% | Mutant Dominant Class ---------------- Mutant | -10/Materials Mutant | -10/Subcaves Resources | -11 -10 -10 ----------- Run | Yrd Mat Sub Matter Collected 1291 | 185 353 753 Remotely . | . . . Salvage Created 776 | . 446 330 Parts 62 | . 39 23 Haulers Intercepted 2 | . 2 . Recyclers Shooed . | . . . Parts Field Recycled . | . . . Retrieved Matter . | . . . Parts Self-Destructed 12 | . . 12 Prevented . | . . . Kills | -11 -10 -10 ------- Run | Yrd Mat Sub Combat Hostiles Destroyed 24 | . 11 13 Guns 13 | . 8 5 Cannons 11 | . 3 8 Classes Destroyed 8 | . 6 2 Hauler 2 | . 2 . Recycler 1 | . 1 . Operator 1 | . 1 . Watcher 2 | . 2 . Swarmer 10 | . 8 2 Grunt 4 | . 3 1 Sentry 1 | . . 1 Subdweller 9 | . . 9 Best Kill Streak 4 | . 4 2 Combat Bots Only 3 | . 3 2 Max Kills in Single Turn 1 | . 1 1 Gunslinging . | . . . Exploded . | . . . Melee . | . . . Uniques/NPCs Destroyed . | . . . Combat | -11 -10 -10 -------- Run | Yrd Mat Sub Hostile Shots Fired 125 | . 42 83 Missed 38 | . 12 26 Damage Taken 1272 | . 316 956 Core 258 | . 54 204 Absorbed by Shields . | . . . Regen/Repaired (Parts) 111 | . 111 . Core Remaining (%) 100 | 100 . . Volleys Fired 121 | . 42 79 Largest 2 | . 2 2 Hottest 74 | . 60 74 Shots Fired 239 | . 82 157 Gun 135 | . 60 75 Cannon 104 | . 22 82 Launcher . | . . . Special . | . . . Kinetic 237 | . 80 157 Thermal 2 | . 2 . Explosive . | . . . Electromagnetic . | . . . Robot Hit Streak 22 | . 12 22 Robot Miss Streak 3 | . 3 2 Penetration Max . | . . . Secondary Targets 1 | . 1 . Max Gunslinging Chain 1 | . 1 . Shots Hit Robots 118 | . 52 66 Core Hits 43 | . 24 19 Critical Kills . | . . . Critical Parts Destroyed . | . . . Critical Strikes 2 | . 1 1 Blast 2 | . 1 1 Melee Attacks . | . . . Impact . | . . . Slashing . | . . . Piercing . | . . . Sneak Attacks . | . . . Combat Hostiles . | . . . Follow-up Attacks . | . . . Damage Inflicted 2002 | . 677 1325 Guns 1105 | . 442 663 Cannons 897 | . 235 662 Explosions . | . . . Melee . | . . . Ramming . | . . . Kinetic 1985 | . 660 1325 Thermal 17 | . 17 . Explosive . | . . . Electromagnetic . | . . . Impact . | . . . Slashing . | . . . Piercing . | . . . Highest Corruption . | . . . Average Corruption . | . . . Corruption Purged . | . . . Corruption Blocked . | . . . Overload Shots . | . . . Overflow Damage . | . . . Projectiles . | . . . Explosions . | . . . Melee . | . . . Knockbacks 13 | . 3 10 Impact . | . . . Kinetic 13 | . 3 10 Secondary . | . . . Self-Inflicted Damage . | . . . Shots . | . . . Rammed . | . . . Targets Rammed . | . . . Kicked . | . . . Crushed . | . . . Highest Temperature 231 | . 20 231 Average Temperature 55 | . 6 119 Received Heat Transfer 720 | . 48 672 Siege Activations . | . . . Robots Corrupted . | . . . Combat Hostiles . | . . . Parts Fried . | . . . Impact Corruptions . | . . . Robots Melted . | . . . Combat Hostiles . | . . . Parts Melted . | . . . Heat Transferred 37 | . 37 . Parts Sabotaged . | . . . Parts Stolen . | . . . Parts Stripped . | . . . Power Chain Reactions . | . . . Alert | -11 -10 -10 ------- Run | Yrd Mat Sub Peak Influence 309 | . 309 . Initial . | . . . Average 134 | . 141 . Maximum Alert Level 1 | . 1 . Low Security (%) 73 | 100 71 . Level 1 26 | . 28 . Level 2 . | . . . Level 3 . | . . . Level 4 . | . . . Level 5 . | . . . High Security . | . . . Max Security . | . . . Squads Dispatched 2 | . 2 . Investigation . | . . . Extermination . | . . . Reinforcement 2 | . 2 . Assault . | . . . Garrison . | . . . Intercept . | . . . Searches Triggered . | . . . Construction Impeded . | . . . Haulers Reinforced . | . . . Active Scanning Responses . | . . . Cargo Convoy Interrupts . | . . . Stealth | -11 -10 -10 --------- Run | Yrd Mat Sub Distress Signals 2 | . 2 . Communications Jammed . | . . . Distress Signals . | . . . Times Spotted 42 | . 25 17 Peak Tracking Total 4 | . 4 4 Tactical Retreats 4 | . 3 1 Traps | -11 -10 -10 ------- Run | Yrd Mat Sub Traps Triggered 7 | . 7 . Indirectly . | . . . Trap Hack Attempts . | . . . Triggered . | . . . Disarmed . | . . . Reprogrammed . | . . . Reused . | . . . Traps Extracted . | . . . Installed . | . . . Triggered . | . . . Machines | -11 -10 -10 ---------- Run | Yrd Mat Sub Machines Disabled 2 | . 1 1 Max in Single Turn 1 | . 1 1 Machines Repaired . | . . . Machines Dismantled . | . . . Machines Sabotaged . | . . . Overloaded Fab Kills . | . . . Hacking | -11 -10 -10 --------- Run | Yrd Mat Sub Machines Accessed 7 | . 5 2 Terminals 4 | . 4 . Fabricators . | . . . Repair Stations 1 | . 1 . Recycling Units . | . . . Scanalyzers . | . . . Garrison Access . | . . . Total Hacks 19 | . 16 3 Successful 11 | . 8 3 Failed 8 | . 8 . Catastrophic 1 | . 1 . Database Lockouts . | . . . Manual 2 | . 2 . Terminals 11 | . 11 . Fabricators . | . . . Repair Stations 5 | . 5 . Recycling Units . | . . . Scanalyzers . | . . . Garrison Access . | . . . Terminal Hacks 7 | . 4 3 Record 2 | . . 2 Prototype ID Bank 2 | . 2 . Patrol Status 1 | . 1 . Zone Layout 1 | . 1 . Derelict Proto ID Bank 1 | . . 1 Fabricator Hacks . | . . . Repair Station Hacks 4 | . 4 . Scan Component 2 | . 2 . Repair 2 | . 2 . Recycling Unit Hacks . | . . . Scanalyzer . | . . . Garrison Access Hacks . | . . . Unauthorized Hacks . | . . . Terminals . | . . . Fabricators . | . . . Repair Stations . | . . . Recycling Units . | . . . Scanalyzers . | . . . Garrison Access . | . . . Data Cores Recovered . | . . . Used . | . . . Hacking Detections 3 | . 3 . Full Trace Events . | . . . Feedback Events . | . . . Feedback Blocked . | . . . Robot Schematics Acquired . | . . . Robots Built . | . . . Authchips . | . . . Time . | . . . Total Robot Build Rating . | . . . Part Schematics Acquired . | . . . Parts Built . | . . . Authchips . | . . . Time . | . . . Total Part Build Rating . | . . . Parts Repaired 2 | . 2 . Time 52 | . 52 . Parts Recycled . | . . . Recycled Matter . | . . . Retrieved Matter . | . . . Retrieved Components . | . . . Parts Scanalyzed . | . . . Part Schematics Acquired . | . . . Parts Damaged . | . . . Bothacking | -11 -10 -10 ------------ Run | Yrd Mat Sub Used RIF Installer . | . . . Robots Hacked . | . . . Non-combat . | . . . Combat . | . . . Robot Hacks Applied . | . . . Relay Couplers Released . | . . . Fabnet Peak Effective % . | . . . Robots Rewired . | . . . Allies Hacked . | . . . Hacks Repelled . | . . . Allies | -11 -10 -10 -------- Run | Yrd Mat Sub Total Allies . | . . . Largest Group . | . . . Highest-Rated Group . | . . . Highest-Rated Ally . | . . . Total Orders . | . . . Ally Attacks . | . . . Total Damage . | . . . Kills . | . . . Allies Corrupted . | . . . Allies Melted . | . . . Intel | -11 -10 -10 ------- Run | Yrd Mat Sub Robot Analysis Total . | . . . Derelict Logs Recovered . | . . . Drone Launches . | . . . Drone Recoveries . | . . . Exploration | -11 -10 -10 ------------- Run | Yrd Mat Sub Turns Passed 4354 | 84 1502 2768 Spaces Moved 2327 | 49 751 1527 Core 5 | 5 . . Treads 2322 | 44 751 1527 Legs . | . . . Wheels . | . . . Hover . | . . . Flight . | . . . Fastest Speed 50 | 50 160 160 Average Speed 159 | 148 160 160 Slowest Speed 240 | 160 240 240 Overloaded Moves . | . . . Propulsion Burnouts . | . . . Robots Hopped . | . . . Cave-ins Triggered . | . . . Exploration Rate (%) 58 | 4 93 79 Regions Visited 2 Branch Regions 1 Pre-discovered Areas 1 | . . 1 Known Exits Taken . | . . . Unknown Exits Taken 2 | 1 1 . Scrap Searched 9 | . . 9 Spaces Dug 8 | . . 8 Terrain Destroyed 8 | . . 8 Melee . | . . . Projectile 8 | . . 8 AOE . | . . . Terrain Rammed . | . . . Walls Destroyed . | . . . Machines Disabled . | . . . Actions | -11 -10 -10 --------- Run | Yrd Mat Sub Total 2723 | 58 969 1696 Wait 188 | . 121 67 Move 2325 | 48 750 1527 Hop . | . . . Pick Up 19 | 4 13 2 Fast Attach 22 | 5 15 2 Attach 6 | 1 1 4 Detach 8 | . 5 3 Swap 12 | . 9 3 Drop 22 | . 13 9 Fire 121 | . 42 79 Melee . | . . . Ram . | . . . Kick . | . . . Crush . | . . . Escape Stasis . | . . . Rewire . | . . . Trap . | . . . Miscellaneous . | . . . Route ------- -11/Scrapyard -10/Materials (discovered 6 exits: [*Mat x3] / [*Min x2] / *Sub) -10/Subcaves (discovered 3 exits: [*Mat x2] / [*Rec]) History --------- Turn | Location | Event 34 | -11/Scrapyard | Discovered new exit (range 16) 85 | -11/Scrapyard | Entered Materials 301 | -10/Materials | Build established: Mutant 390 | -10/Materials | Discovered new exit (range 15) 889 | -10/Materials | Discovered new exit (range 14) 1198 | -10/Materials | Discovered new exit (range 11) 1307 | -10/Materials | Discovered new exit (range 7) 1449 | -10/Materials | Discovered new exit (range 14) 1496 | -10/Materials | Repaired Lgt. Treads 1523 | -10/Materials | Repaired Lgt. Treads 1578 | -10/Materials | Discovered new exit (range 7) 1587 | -10/Materials | Entered Subcaves 1667 | -10/Subcaves | Shifting Twisted Machinery released Sub. Machine Gun 1726 | -10/Subcaves | Shifting Twisted Machinery released Sub. Optics 1823 | -10/Subcaves | Visited Clippyterm 1828 | -10/Subcaves | Learned Factory trap positions 1855 | -10/Subcaves | Shifting Twisted Machinery released Mak. Light Armor Plating 1858 | -10/Subcaves | Shifting Twisted Machinery released Flamer 2250 | -10/Subcaves | Discovered new exit (range 14) 2469 | -10/Subcaves | Core integrity fell below 50% 2513 | -10/Subcaves | A swath of the cavern ceiling suddenly collapsed 2754 | -10/Subcaves | Visited 4L-MR0's lab 2780 | -10/Subcaves | Found Powered Cannon 2852 | -10/Subcaves | A swath of the cavern ceiling suddenly collapsed 3121 | -10/Subcaves | Shifting Twisted Machinery released Mak. System Restoration Module 3126 | -10/Subcaves | Shifting Twisted Machinery released Sub. Machine Gun 3948 | -10/Subcaves | Core integrity fell below 20% 4139 | -10/Subcaves | Discovered new exit (range 5) 4141 | -10/Subcaves | Learned location of Zion (-7) 4141 | -10/Subcaves | Met a Zionite searching for "candidates" 4335 | -10/Subcaves | Discovered new exit (range 13) 4355 | -10/Subcaves | Destroyed by S-10 Pest with Light Assault Rifle Last Messages --------------- 04028_ Found Mak. Light Armor Plating. 04028_ Found 26 Matter. 04031_ Searching scrap... 04031_ Found Sub. Laser. 04031_ Found 28 Matter. 04105_ W0-S9D(u) tweaks Twisted Machinery. 04139_ EXIT=FOUND 04141_ BM-Y8M(z): "Hey you! It's really dangerous down here, I feel that you could die at any moment. For your health and safety might I suggest a trip to Zion?" World map updated: -7/Zion. 04187_ W0-S9D(u) tweaks Twisted Machinery. 04335_ EXIT=FOUND 04343_ S-10 Pest destroyed. 04347_ Flight Unit fries itself beyond repair. 04349_ Lgt. Assault Rifle fries itself beyond repair. 04352_ S-10 Pest destroyed. Map ----- +----------------------------------------------------+ | ?????????????????????????????????????????????????? | | ?????????????????????????????????????????????????? | | ?????????????????????????????????????????????????? | | ?????????????????????????????????????????????????? | | ?????????????????????????????????????????????????? | | ###????????###????????????####??#######??????????? | | ##?####?## ##?????????### ####"##""##??????#### | | ### ### #?#####???# ""##"" ##"#??????# | | ### #???# #""##""######?????## | | ### ##### "##"### #?????????# | | ### ## # ## #"##""""##?????????# | | #?# #"#### #??????????# | | #### "##??###??????????## | | #### ## ## ## # #????????????????##" | | ### ### ######## ##???????????????# " | | ?# ## #?????# & #???????????????# " # | | ?# ## #?????## ##?????####????####### | | ### #### #?????## #######" ##?###"####? | | ####### #??# #?????# ! ### ##" "###" "" ## | | ##???## #?? ?????## ## #?# "## " "" | | #???## #?# ##?????# && ### "##"" """ | | #???# #?## ##??????## ##" """ | | #???# #######????????# "" """ | | ##??# #????????###### """ "" | | #??# #??????###s ### " " ## # | | ###??## #?????## %s@ ####### " "#### | | #?????## ##????# % ### ##?????## #######??? | | #???????# #????# #?####???????####????????? | | ????????# #????# #????????????????????????? | | ##??????# ##????# #????????????????????????? | | ##?????# # #?????# #????????????????????????? | | #?????####""##????# #????????????????????????? | | #######??#"#"#???? ????????????????????????? | | ###"""""####"#"#??? ????????????????????????? | | ####"###""###""#??? ????????????????????????? | | ?#""####""#"""##??" ????????????????????????? | | ?##""#""####""#???" " " ????????????????????????? | | ??###""##"##""##??"""" ""????????????????????????? | | #####""""####""##?####<##????????????????????????? | | ##"""#""#?###" #?????#??????????????????????????? | | #"#"""""##?# " #????????????????????????????????? | | " #""""##### ##########???????????????########## | | #"####""#"## ### #??????#######?##""##""## | | ###??### ### ## #?###??## #?# " """"" | | ?###### #### ## #### ##?# #?#"" """ | | ?# # ##"## ## ### ####"### ## | | ??# #"" # ## #?##?#" ##? | | ??##### " # #????## #? | | ??????### # #??### " ##? | | ????????## #### ### ### ##?##"# " #?? | +----------------------------------------------------+ Best States ------------- Heat Dissipation 25 Energy Generation 10 Energy Capacity 250 Matter Stores 300 Matter Capacity 300 Sight Range 16 Terrain Scan Density 10 Evasion (%) 40 Targeting Accuracy 6 Recoil Reduction 2 Item Schematics ----------------- None Robot Schematics ------------------ None Fabricated ------------ Nothing Alien Tech Used ----------------- None Achievements -------------- None Challenges ------------ None Game ------ Seed ShadingPointyWheel Manual? 0 Play Time 00:23:57 Cumulative 85.5 hours Start 2024.05.27 @ 08:18:14 End 2024.05.27 @ 08:42:11 Sessions 1 Manual Loads 0 Difficulty Rogue Special Mode None Game No. 137 Rogue 137 Adventurer 0 Explorer 0 Win Type - Total 1 Types 1/0/0/0/0/0/0/0/0 Lore% 40 Gallery% 44 Achievement% 32 Wizard Run 0 Options --------- Layout 1 ASCII 0 Keyboard 1 Movement Numpad Keybinds 0 Fullscreen 1 Font 24/Smallcaps Map View 50x35 Zoom Use 0% Tactical HUD 1 Map Filters NONE Filters NONE Steam 1 RUN: 5a53c0e9-ff89-4052-ac77-71799e7e7985